[Event "Superbet Blitz GCT 2019"]
[Site "Bucharest"]
[Date "2019.11.09"]
[Round "2"]
[White "Aronian, Levon"]
[Black "Korobov, Anton"]
[Result "1/2-1/2"]
[ECO "D46"]
[WhiteElo "2772"]
[BlackElo "2670"]
[Annotator "RC"]
[PlyCount "80"]
[EventDate "2019.11.09"]
[EventType "tourn"]
[EventCountry "ROU"]
[SourceTitle "playchess.com"]
[Source "ChessBase"]
[SourceQuality "1"]
[TimeMode "Bronstein"]
[TimeControl "300+3"]

1. d4 {[%emt 0:00:00]} d5 {[%emt 0:00:00]} 2. c4 {[%emt 0:00:00]} c6 {[%emt 0:00:00]} 3. Nf3 {[%emt 0:00:00]} Nf6 {[%emt 0:00:00]} 4. Nc3 {[%emt 0:00:00]} e6 {[%emt 0:00:00]} 5. e3 {[%emt 0:00:00]} Nbd7 {[%emt 0:00:00]} 6. Qc2 {[%emt 0:00:00]} Bd6 {[%emt 0:00:00]} 7. Bd3 {[%emt 0:00:00]} O-O {[%emt 0:00:00]} 8. O-O {[%emt 0:00:00]} dxc4 {[%emt 0:00:00]} 9. Bxc4 {[%emt 0:00:00]} b5 {[%emt 0:00:00]} 10. Be2 {[%emt 0:00:00]} Bb7 {[%emt 0:00:00]} 11. Rd1 {[%emt 0:00:01]} Qc7 {[%emt 0:00:09]} 12. h3 {[%emt 0:00:17]} Rfe8 {[%emt 0:00:19]} 13. Nd2 {[%emt 0:00:10]} a6 {[%emt 0:00:52]} 14. Nce4 {[%emt 0:00:03]} c5 {[%emt 0:00:21]} 15. Nxd6 {[%emt 0:00:20]} Qxd6 {[%emt 0:00:03]} 16. dxc5 {[%emt 0:00:03]} Qxc5 {[%emt 0:00:03]} 17. Qxc5 {[%emt 0:00:12]} Nxc5 {[%emt 0:00:03]} 18. b3 {[%emt 0:00:40]} Red8 {[%emt 0:00:10]} 19. Ba3 {[%emt 0:00:49]} Nd3 {[%emt 0:00:08]} 20. Nb1 {[%emt 0:01:58]} Ne5 {[%emt 0:00:32]} 21. Nc3 {[%emt 0:00:03]} Rac8 {[%emt 0:00:11]} 22. Rac1 {[%emt 0:00:19]} h6 {[%emt 0:00:14]} 23. f3 {[%emt 0:00:10]} Rxd1+ {[%emt 0:00:16]} 24. Nxd1 {[%emt 0:00:03]} Rd8 {[%emt 0:00:24]} 25. Bb4 {[%emt 0:00:16]} Nd3 {[%emt 0:00:13]} 26. Bxd3 {[%emt 0:00:03]} Rxd3 {[%emt 0:00:03]} 27. Kf2 {[%emt 0:00:03]} Rd7 {[%emt 0:00:23]} 28. e4 {[%emt 0:00:03]} Nh5 {[%emt 0:00:03]} 29. Nb2 {[%emt 0:00:06]} f5 {[%emt 0:00:09]} 30. exf5 {[%emt 0:00:03]} exf5 {[%emt 0:00:03]} 31. Rd1 {[%emt 0:00:04]} Rxd1 {[%emt 0:00:03]} 32. Nxd1 {[%emt 0:00:03]} Nf4 {[%emt 0:00:03]} 33. Nb2 {[%emt 0:00:03]} Kf7 {[%emt 0:00:04]} 34. Bd2 {[%emt 0:00:03]} Ne6 {[%emt 0:00:03]} 35. Nd3 {[%emt 0:00:03]} g5 {[%emt 0:00:03]} 36. h4 {[%emt 0:00:04]} f4 {[%emt 0:00:03]} 37. Ne5+ {[%emt 0:00:03]} Kf6 {[%emt 0:00:07]} 38. Ng4+ {[%emt 0:00:03]} Kg6 {[%emt 0:00:03]} 39. Ne5+ {[%emt 0:00:03]} Kf6 {[%emt 0:00:03]} 40. Ng4+ {[%emt 0:00:05]} Kg6 {[%emt 0:00:03]} 1/2-1/2

[Event "Superbet Blitz GCT 2019"]
[Site "Bucharest"]
[Date "2019.11.09"]
[Round "4"]
[White "Artemiev, Vladislav"]
[Black "Korobov, Anton"]
[Result "1/2-1/2"]
[ECO "B50"]
[WhiteElo "2731"]
[BlackElo "2670"]
[Annotator "RC"]
[PlyCount "135"]
[EventDate "2019.11.09"]
[EventType "tourn"]
[EventCountry "ROU"]
[SourceTitle "playchess.com"]
[Source "ChessBase"]
[SourceQuality "1"]
[TimeMode "Bronstein"]
[TimeControl "300+3"]

1. e4 {[%emt 0:00:00]} c5 {[%emt 0:00:00]} 2. Nf3 {[%emt 0:00:00]} d6 {[%emt 0:00:00]} 3. Nc3 {[%emt 0:00:00]} Nf6 {[%emt 0:00:00]} 4. e5 {[%emt 0:00:00]} dxe5 {[%emt 0:00:00]} 5. Nxe5 {[%emt 0:00:00]} Nbd7 {[%emt 0:00:00]} 6. Nc4 {[%emt 0:00:00]} e6 {[%emt 0:00:00]} 7. g3 {[%emt 0:00:00]} Rb8 {[%emt 0:00:11]} 8. a4 {[%emt 0:00:40]} Be7 {[%emt 0:00:11]} 9. Bg2 {[%emt 0:00:03]} O-O {[%emt 0:00:09]} 10. O-O {[%emt 0:00:28]} b6 {[%emt 0:00:06]} 11. d3 {[%emt 0:00:29]} Bb7 {[%emt 0:00:03]} 12. Bf4 {[%emt 0:00:03]} Bxg2 {[%emt 0:00:07]} 13. Kxg2 {[%emt 0:00:03]} Rc8 {[%emt 0:00:16]} 14. Qf3 {[%emt 0:00:10]} Nb8 {[%emt 0:00:16]} 15. Bxb8 {[%emt 0:00:28]} Rxb8 {[%emt 0:00:03]} 16. Nb5 {[%emt 0:00:03]} a6 {[%emt 0:00:36]} 17. Na7 {[%emt 0:00:03]} Qc7 {[%emt 0:00:19]} 18. Nc6 {[%emt 0:00:03]} Rbe8 {[%emt 0:00:03]} 19. Rfe1 {[%emt 0:00:25]} Nd5 {[%emt 0:00:04]} 20. Nxe7+ {[%emt 0:00:04]} Rxe7 {[%emt 0:00:03]} 21. c3 {[%emt 0:00:08]} Rd8 {[%emt 0:00:03]} 22. Red1 {[%emt 0:01:10]} h6 {[%emt 0:00:03]} 23. d4 {[%emt 0:00:03]} b5 {[%emt 0:00:18]} 24. axb5 {[%emt 0:00:03]} axb5 {[%emt 0:00:03]} 25. Ne5 {[%emt 0:00:23]} cxd4 {[%emt 0:00:03]} 26. cxd4 {[%emt 0:00:03]} Qb7 {[%emt 0:00:06]} 27. Rdc1 {[%emt 0:00:18]} Nb4 {[%emt 0:00:15]} 28. Qxb7 Rxb7 {[%emt 0:00:03]} 29. Nf3 {[%emt 0:00:16]} f6 {[%emt 0:00:21]} 30. b3 {[%emt 0:00:19]} Kf7 {[%emt 0:00:05]} 31. Rc5 {[%emt 0:00:03]} Nd5 {[%emt 0:00:12]} 32. Ra5 {[%emt 0:00:03]} b4 {[%emt 0:00:03]} 33. Ra6 {[%emt 0:00:10]} Nc3 {[%emt 0:00:27]} 34. Rac6 {[%emt 0:00:04]} Rdd7 {[%emt 0:00:07]} 35. Rc8 {[%emt 0:00:03]} Nb5 {[%emt 0:00:05]} 36. d5 {[%emt 0:00:08]} exd5 {[%emt 0:00:12]} 37. h4 {[%emt 0:00:03]} d4 {[%emt 0:00:06]} 38. Rc2 {[%emt 0:00:03]} d3 {[%emt 0:00:07]} 39. Rd2 {[%emt 0:00:03]} Nd6 {[%emt 0:00:03]} 40. Rc6 {[%emt 0:00:03]} Ne4 {[%emt 0:00:03]} 41. Rd1 {[%emt 0:00:03]} Rd5 {[%emt 0:00:11]} 42. Rc4 {[%emt 0:00:03]} f5 {[%emt 0:00:03]} 43. Nd2 {[%emt 0:00:03]} Nxd2 44. Rxd2 {[%emt 0:00:03]} g5 {[%emt 0:00:13]} 45. Rc6 {[%emt 0:00:03]} Kg7 {[%emt 0:00:06]} 46. h5 {[%emt 0:00:03]} Re7 {[%emt 0:00:04]} 47. Kf1 {[%emt 0:00:03]} f4 {[%emt 0:00:05]} 48. Rg6+ {[%emt 0:00:03]} Kh7 {[%emt 0:00:03]} 49. gxf4 {[%emt 0:00:03]} gxf4 {[%emt 0:00:03]} 50. Rf6 {[%emt 0:00:03]} Re4 {[%emt 0:00:10]} 51. Rf7+ {[%emt 0:00:03]} Kg8 {[%emt 0:00:03]} 52. Rc7 {[%emt 0:00:03]} f3 {[%emt 0:00:07]} 53. Ra2 {[%emt 0:00:03]} Re8 {[%emt 0:00:15]} 54. Raa7 {[%emt 0:00:03]} Rg5 {[%emt 0:00:03]} 55. Re7 {[%emt 0:00:03]} Rxe7 {[%emt 0:00:19]} 56. Rxe7 {[%emt 0:00:03]} Rxh5 {[%emt 0:00:03]} 57. Ke1 {[%emt 0:00:03]} Rh1+ {[%emt 0:00:02]} 58. Kd2 Rb1 {[%emt 0:00:04]} 59. Kxd3 {[%emt 0:00:03]} Rxb3+ {[%emt 0:00:03]} 60. Ke4 {[%emt 0:00:03]} Rc3 {[%emt 0:00:07]} 61. Rb7 {[%emt 0:00:03]} Rb3 {[%emt 0:00:03]} 62. Kf4 {[%emt 0:00:03]} Kf8 {[%emt 0:00:04]} 63. Ke4 {[%emt 0:00:03]} Ke8 {[%emt 0:00:04]} 64. Rh7 {[%emt 0:00:03]} Rc3 {[%emt 0:00:03]} 65. Rb7 {[%emt 0:00:03]} b3 {[%emt 0:00:03]} 66. Kd4 {[%emt 0:00:03]} Rc2 {[%emt 0:00:03]} 67. Rxb3 {[%emt 0:00:03]} Rxf2 {[%emt 0:00:03]} 68. Ke4 {[%emt 0:00:03]} 1/2-1/2

[Event "Superbet Blitz GCT 2019"]
[Site "Bucharest"]
[Date "2019.11.09"]
[Round "9"]
[White "Anand, Viswanathan"]
[Black "Giri, Anish"]
[Result "1/2-1/2"]
[ECO "C54"]
[WhiteElo "2757"]
[BlackElo "2776"]
[Annotator "RC"]
[PlyCount "62"]
[EventDate "2019.11.09"]
[EventType "tourn"]
[EventCountry "ROU"]
[SourceTitle "playchess.com"]
[Source "ChessBase"]
[SourceQuality "1"]
[TimeMode "Bronstein"]
[TimeControl "300+3"]

1. e4 {[%emt 0:00:00]} e5 {[%emt 0:00:00]} 2. Nf3 {[%emt 0:00:00]} Nc6 {[%emt 0:00:00]} 3. Bc4 {[%emt 0:00:00]} Nf6 {[%emt 0:00:00]} 4. d3 {[%emt 0:00:00]} Bc5 {[%emt 0:00:00]} 5. O-O {[%emt 0:00:03]} d6 6. c3 {[%emt 0:00:00]} a6 {[%emt 0:00:00]} 7. a4 {[%emt 0:00:00]} Ba7 {[%emt 0:00:00]} 8. Re1 {[%emt 0:00:00]} O-O {[%emt 0:00:00]} 9. h3 {[%emt 0:00:00]} Re8 {[%emt 0:00:00]} 10. Nbd2 {[%emt 0:00:00]} Be6 {[%emt 0:00:00]} 11. Bxe6 {[%emt 0:00:00]} Rxe6 {[%emt 0:00:00]} 12. b4 {[%emt 0:00:00]} d5 {[%emt 0:00:00]} 13. Bb2 {[%emt 0:00:06]} Nh5 {[%emt 0:00:06]} 14. b5 {[%emt 0:00:22]} Nf4 {[%emt 0:00:35]} 15. bxc6 {[%emt 0:00:06]} Rg6 {[%emt 0:00:03]} 16. d4 {[%emt 0:00:18]} Rxg2+ {[%emt 0:00:23]} 17. Kh1 {[%emt 0:00:58]} Qc8 {[%emt 0:00:42]} 18. Ng1 {[%emt 0:00:05]} Rxf2 {[%emt 0:00:20]} 19. Rf1 {[%emt 0:00:30]} Nxh3 {[%emt 0:00:34]} 20. Qh5 {[%emt 0:00:38]} Nf4 {[%emt 0:00:33]} 21. Qxe5 {[%emt 0:00:21]} Nd3 {[%emt 0:00:05]} 22. Qg5 {[%emt 0:01:07]} Rxf1 {[%emt 0:00:46]} 23. Rxf1 {[%emt 0:00:03]} Nxb2 {[%emt 0:00:03]} 24. Qxd5 {[%emt 0:00:08]} bxc6 {[%emt 0:00:03]} 25. Qxf7+ {[%emt 0:00:05]} Kh8 {[%emt 0:00:03]} 26. Ndf3 {[%emt 0:00:03]} Nxa4 {[%emt 0:00:11]} 27. Ne5 {[%emt 0:00:20]} Qe8 {[%emt 0:00:34]} 28. Qc4 {[%emt 0:00:19]} Nb6 {[%emt 0:00:19]} 29. Nf7+ {[%emt 0:00:03]} Kg8 {[%emt 0:00:03]} 30. Nh6+ {[%emt 0:00:03]} Kh8 {[%emt 0:00:03]} 31. Nf7+ {[%emt 0:00:03]} Kg8 {[%emt 0:00:03]} 1/2-1/2

[Event "Superbet Blitz GCT 2019"]
[Site "Bucharest"]
[Date "2019.11.10"]
[Round "12"]
[White "Aronian, Levon"]
[Black "Le, Quang Liem"]
[Result "1-0"]
[ECO "A36"]
[WhiteElo "2772"]
[BlackElo "2713"]
[Annotator "ChessBase"]
[PlyCount "123"]
[EventDate "2019.11.09"]
[EventType "tourn"]
[EventCountry "ROU"]
[SourceTitle "playchess.com"]
[Source "ChessBase"]
[SourceQuality "1"]
[TimeMode "Bronstein"]
[TimeControl "300+3"]

1. c4 {[%emt 0:00:00]} c5 {[%emt 0:00:00]} 2. Nc3 {[%emt 0:00:00]} Nc6 {[%emt 0:00:00]} 3. g3 {[%emt 0:00:00]} g6 {[%emt 0:00:00]} 4. Bg2 {[%emt 0:00:00]} Bg7 {[%emt 0:00:00]} 5. d3 {[%emt 0:00:00]} e6 {[%emt 0:00:12]} 6. h4 {[%emt 0:00:00]} h6 {[%emt 0:00:03]} 7. h5 {[%emt 0:00:00]} g5 {[%emt 0:00:03]} 8. f4 {[%emt 0:00:00]} d6 {[%emt 0:00:25]} 9. Bxc6+ {[%emt 0:00:04]} bxc6 {[%emt 0:00:03]} 10. Nf3 {[%emt 0:00:19]} g4 {[%emt 0:00:12]} 11. Nd2 {[%emt 0:00:17]} f5 {[%emt 0:00:12]} 12. Qa4 {[%emt 0:00:03]} Ne7 {[%emt 0:00:10]} 13. Nb3 {[%emt 0:00:05]} O-O {[%emt 0:00:39]} 14. Bd2 {[%emt 0:00:05]} Bd7 {[%emt 0:00:03]} 15. Qa5 {[%emt 0:00:23]} Qb8 {[%emt 0:00:21]} 16. O-O-O {[%emt 0:00:09]} Kh7 {[%emt 0:00:16]} 17. e4 {[%emt 0:00:19]} e5 {[%emt 0:00:03]} 18. Rhf1 {[%emt 0:00:25]} fxe4 {[%emt 0:00:29]} 19. Nxe4 {[%emt 0:00:09]} Nf5 {[%emt 0:00:03]} 20. fxe5 {[%emt 0:00:15]} Bxe5 {[%emt 0:00:03]} 21. Bf4 {[%emt 0:00:11]} Qe8 {[%emt 0:00:53]} 22. Rde1 {[%emt 0:00:46]} Bxf4+ {[%emt 0:00:22]} 23. Rxf4 {[%emt 0:00:03]} Qd8 {[%emt 0:00:07]} 24. Qc3 {[%emt 0:00:28]} Rf7 {[%emt 0:00:05]} 25. d4 {[%emt 0:00:13]} cxd4 {[%emt 0:00:17]} 26. Nxd4 {[%emt 0:00:03]} Qh8 {[%emt 0:00:03]} 27. Nxf5 {[%emt 0:00:20]} Qxc3+ {[%emt 0:00:03]} 28. bxc3 {[%emt 0:00:04]} Rxf5 {[%emt 0:00:08]} 29. Nf6+ {[%emt 0:00:03]} Kg7 {[%emt 0:00:05]} 30. Nxd7 {[%emt 0:00:03]} Rxf4 {[%emt 0:00:03]} 31. gxf4 {[%emt 0:00:03]} Kf7 {[%emt 0:00:03]} 32. c5 {[%emt 0:00:28]} Rd8 {[%emt 0:00:03]} 33. Rg1 {[%emt 0:00:08]} Rxd7 {[%emt 0:00:03]} 34. Rxg4 {[%emt 0:00:03]} dxc5 {[%emt 0:00:22]} 35. Rg6 {[%emt 0:00:03]} Rd3 {[%emt 0:00:03]} 36. Kb2 {[%emt 0:00:04]} Rd2+ {[%emt 0:00:05]} 37. Ka3 {[%emt 0:00:11]} Rd3 {[%emt 0:00:15]} 38. Kb3 {[%emt 0:00:03]} Rf3 {[%emt 0:00:03]} 39. Rxh6 {[%emt 0:00:05]} c4+ {[%emt 0:00:03]} 40. Kxc4 {[%emt 0:00:14]} Rxf4+ {[%emt 0:00:03]} 41. Kc5 {[%emt 0:00:07]} Ra4 {[%emt 0:00:03]} 42. Rxc6 {[%emt 0:00:07]} Rxa2 {[%emt 0:00:03]} 43. c4 {[%emt 0:00:03]} a5 {[%emt 0:00:08]} 44. Ra6 {[%emt 0:00:03]} Ke7 {[%emt 0:00:03]} 45. h6 {[%emt 0:00:03]} Rh2 {[%emt 0:00:03]} 46. h7 {[%emt 0:00:05]} Rh5+ {[%emt 0:00:10]} 47. Kb6 {[%emt 0:00:03]} Kd6 {[%emt 0:00:03]} 48. c5+ {[%emt 0:00:03]} Kd5 {[%emt 0:00:03]} 49. c6 {[%emt 0:00:05]} Kd6 {[%emt 0:00:04]} 50. Rxa5 {[%emt 0:00:06]} Rxh7 {[%emt 0:00:03]} 51. Ra1 {[%emt 0:00:03]} Rh2 {[%emt 0:00:03]} 52. Rd1+ {[%emt 0:00:03]} Ke7 {[%emt 0:00:03]} 53. c7 {[%emt 0:00:03]} Rb2+ {[%emt 0:00:03]} 54. Kc6 {[%emt 0:00:03]} Rc2+ {[%emt 0:00:03]} 55. Kb7 {[%emt 0:00:03]} Rb2+ {[%emt 0:00:03]} 56. Kc8 {[%emt 0:00:03]} Rb4 {[%emt 0:00:05]} 57. Re1+ {[%emt 0:00:03]} Kf7 {[%emt 0:00:03]} 58. Kd7 {[%emt 0:00:03]} Rd4+ {[%emt 0:00:03]} 59. Kc6 {[%emt 0:00:03]} Rc4+ {[%emt 0:00:03]} 60. Kd6 {[%emt 0:00:03]} Rc2 {[%emt 0:00:03]} 61. Re5 {[%emt 0:00:03]} Rd2+ {[%emt 0:00:03]} 62. Rd5 {[%emt 0:00:03]} 1-0